bitfinex-derivatives/quotes_BNBF0:USTF0_20230901
["timestamp","ask_amount","ask_price","bid_price","bid_amount"]
[1693531289684,0.14952387,217.06,214.84,0.16924531]
[1693531289883,0.14952387,217.06,214.85,0.16924531]
[1693531290077,0.14952387,217.06,214.79,1.6924531]
[1693531291885,0.14952387,217.05,214.79,1.6924531]
[1693531306796,0.14952387,217.06,214.8,1.86169841]
[1693531306997,0.14952387,217.06,214.81,0.16924531]
[1693531307195,0.14952387,217.06,214.8,1.6924531]
[1693531314602,0.14952387,217.05,214.8,1.6924531]
[1693531315701,0.14952387,217.06,214.8,1.6924531]
[1693531317705,0.14952387,217.05,214.8,1.6924531]
[1693531318504,0.14952387,217.06,214.8,1.6924531]
[1693531318804,0.14952387,217.05,214.8,1.6924531]
[1693531322208,0.14952387,217.05,214.79,1.6924531]
[1693531323407,0.14952387,217.04,214.79,1.6924531]
[1693531323806,0.14952387,217.05,214.79,1.6924531]
[1693531325708,0.14952387,217.04,214.79,1.6924531]
[1693531327311,0.14952387,217.05,214.79,1.6924531]
[1693531328212,0.14952387,217.04,214.79,1.6924531]
[1693531332614,0.14952387,217.04,214.78,1.6924531]
[1693531340514,3.83315512,217.4,214.78,1.6924531]
[1693531340714,0.15011441,217.04,214.78,1.6924531]
[1693531346425,3.50266968,217.18,214.78,1.6924531]
[1693531346426,0.15011441,217.05,214.78,1.6924531]
[1693531347424,0.15011441,217.05,214.79,1.6924531]
[1693531354931,0.15011441,217.04,214.79,1.6924531]
[1693531355127,0.15011441,217.05,214.79,1.6924531]
[1693531355432,0.15011441,217.04,214.79,1.6924531]
[1693531355736,0.15011441,217.05,214.79,1.6924531]
[1693531360827,0.15011441,217.05,214.8,1.6924531]
[1693531361032,0.07509471,217.03,214.8,1.6924531]
[1693531365136,0.07509471,217.03,214.79,1.6924531]
[1693531369733,0.07509471,217.03,214.8,1.86169841]
[1693531369937,0.07509471,217.03,214.81,0.16924531]
[1693531370142,0.07509471,217.03,214.82,0.16924531]
[1693531370341,0.07509471,217.03,214.8,1.6924531]
[1693531381441,0.07509471,217.02,214.8,1.6924531]
[1693531381638,0.07509471,217.03,214.8,1.6924531]
[1693531389046,0.07509471,217.02,214.8,1.6924531]
[1693531397455,0.07509471,217.03,214.8,1.6924531]
[1693531403660,0.07509471,217.02,214.8,1.6924531]
[1693531404060,0.07509471,217.03,214.8,1.6924531]
[1693531417569,0.07509471,217.02,214.8,1.6924531]
[1693531421174,0.07509471,217.03,214.8,1.6924531]
[1693531422468,0.07509471,217.02,214.8,1.6924531]
[1693531437086,0.07509471,217.03,214.8,1.6924531]
[1693531437286,0.07509471,217.02,214.8,1.6924531]
[1693531437786,0.07509471,217.03,214.8,1.6924531]
[1693531438186,0.07509471,217.02,214.8,1.6924531]
[1693531443993,0.07509471,217.03,214.8,1.6924531]
[1693531461404,0.07509471,217.02,214.81,0.16924531]
[1693531461603,0.07509471,217.02,214.79,1.6924531]
[1693531469107,0.07509471,217.03,214.79,1.6924531]
[1693531475107,3.83367888,218.1,214.79,1.6924531]
[1693531475308,0.07509697,217.03,214.79,1.6924531]
[1693531480221,0.07509697,216.97,214.79,1.6924531]
[1693531480613,0.15019394,216.99,214.79,1.6924531]
[1693531480614,0.07509697,216.99,214.79,1.6924531]
[1693531481722,0.07509697,217.0,214.79,1.6924531]
[1693531482222,0.07509697,216.99,214.8,0.16924531]
[1693531482423,0.07509697,216.99,214.81,0.16924531]
[1693531482623,0.07509697,217.0,214.82,0.16924531]
[1693531482817,0.07509697,217.0,214.83,0.16924531]
[1693531483021,0.07509697,217.0,214.84,0.16924531]
[1693531483318,0.07509697,217.0,214.85,0.16924531]
[1693531483522,0.07509697,217.0,214.86,0.16924531]
[1693531483723,0.07509697,217.01,214.87,0.16924531]
[1693531484022,0.07509697,217.01,214.88,0.16924531]
[1693531484223,0.07509697,217.01,214.89,0.16924531]
[1693531484522,0.07509697,217.01,214.9,0.16924531]
[1693531484722,0.07509697,217.01,214.91,0.16924531]
[1693531484923,0.07509697,217.01,214.92,0.16924531]
[1693531485123,0.07509697,217.02,214.93,0.16924531]
[1693531485425,0.07509697,217.02,214.94,0.16924531]
[1693531485617,0.07509697,217.02,214.95,0.16924531]
[1693531485821,0.07509697,217.02,214.96,0.16924531]
[1693531486124,0.07509697,217.02,214.97,0.16924531]
[1693531486317,0.07509697,217.02,214.73,1.6924531]
[1693531489723,0.07509697,217.01,214.73,1.6924531]
[1693531492728,0.07509697,217.0,214.73,1.6924531]
[1693531494724,0.07509697,216.99,214.73,1.6924531]
[1693531494929,0.07509697,217.0,214.73,1.6924531]
[1693531495431,0.07509697,216.99,214.73,1.6924531]
[1693531498633,0.07509697,216.98,214.73,1.6924531]
[1693531499430,0.07509697,216.99,214.73,1.6924531]
[1693531499726,0.07509697,216.98,214.73,1.6924531]
[1693531503635,0.07509697,216.97,214.73,1.6924531]
[1693531506634,0.07509697,216.96,214.73,1.6924531]
[1693531510744,0.07509697,216.95,214.73,1.6924531]
[1693531512345,0.07509697,216.94,214.73,1.6924531]
[1693531513544,0.07509697,216.93,214.73,1.6924531]
[1693531514550,0.07509697,216.91,214.73,1.6924531]
[1693531514946,0.07509697,216.92,214.73,1.6924531]
[1693531517353,0.07509697,216.93,214.73,1.6924531]
[1693531518552,0.07509697,216.93,214.74,1.6924531]
[1693531519555,0.07509697,216.94,214.74,1.6924531]
[1693531521857,0.07509697,216.95,214.74,1.6924531]
[1693531524255,0.07509697,216.96,214.74,1.6924531]
[1693531526757,0.07509697,216.97,214.74,1.6924531]
[1693531526957,0.07509697,216.96,214.74,1.6924531]
[1693531527158,0.07509697,216.96,214.75,0.16924531]
[1693531527357,0.07509697,216.96,214.73,1.6924531]
[1693531527551,0.07509697,216.97,214.73,1.6924531]
[1693531531157,0.07509697,216.97,214.74,1.86169841]
[1693531531357,0.07509697,216.97,214.75,0.16924531]
[1693531531560,0.07509697,216.97,214.76,0.16924531]
[1693531531753,0.07509697,216.97,214.77,0.16924531]
[1693531531958,0.07509697,216.97,214.78,0.16924531]
[1693531532260,0.07509697,216.97,214.79,0.16924531]
[1693531532452,0.07509697,216.97,214.74,1.6924531]
[1693531549867,2.50323233,217.1,214.74,1.6924531]
[1693531550070,0.07504997,216.97,214.74,1.6924531]
[1693531556176,0.07504997,216.96,214.74,1.6924531]
[1693531556576,0.07504997,216.95,214.75,0.16924531]
[1693531556876,0.07504997,216.95,214.76,0.16924531]
[1693531557069,0.07504997,216.95,214.73,1.6924531]
[1693531557470,0.07504997,216.96,214.73,1.6924531]
[1693531557677,0.07504997,216.95,214.73,1.6924531]
[1693531557974,0.07504997,216.96,214.73,1.6924531]
[1693531560976,0.50033315,217.01,212.93,20.150752]
[1693531560977,0.07504997,216.95,214.72,1.6924531]
[1693531561280,0.07504997,216.94,214.72,1.6924531]
[1693531561678,0.07504997,216.93,214.72,1.6924531]
[1693531561873,0.15009994,216.96,214.72,1.6924531]
[1693531561874,0.07504997,216.94,214.72,1.6924531]
[1693531562074,0.07504997,216.95,214.72,1.6924531]
[1693531562479,0.07504997,216.94,214.72,1.6924531]
[1693531563281,0.07504997,216.95,214.72,1.6924531]
[1693531564476,0.07504997,216.96,214.72,1.6924531]
[1693531565376,0.07504997,216.96,214.73,0.16924531]
[1693531565577,0.07504997,216.96,214.74,0.16924531]
[1693531565778,0.07504997,216.96,214.75,0.16924531]
[1693531565975,0.07504997,216.96,214.7,1.6924531]
[1693531568481,0.07504997,216.97,214.7,1.6924531]
[1693531571679,0.07504997,216.96,214.7,1.6924531]
[1693531572477,0.07504997,216.97,214.7,1.6924531]
[1693531572884,0.07504997,216.96,214.7,1.6924531]
[1693531573582,0.07504997,216.97,214.7,1.6924531]
[1693531584083,0.07504997,216.96,214.7,1.6924531]
[1693531584388,0.07504997,216.91,214.7,1.6924531]
[1693531584788,0.07504997,216.92,214.7,1.6924531]
[1693531586396,0.07504997,216.91,214.7,1.6924531]
[1693531586989,0.07504997,216.91,214.71,0.16924531]
[1693531587193,0.07504997,216.91,214.72,0.16924531]
[1693531587393,0.07504997,216.91,214.73,0.16924531]
[1693531587591,0.07504997,216.9,214.74,0.16924531]
[1693531587787,0.07504997,216.89,214.64,1.6924531]
[1693531588093,0.15009994,216.92,214.64,1.6924531]
[1693531588094,0.07504997,216.9,214.64,1.6924531]
[1693531588394,0.07504997,216.89,214.64,1.6924531]
[1693531588594,0.07504997,216.88,214.64,1.6924531]
[1693531589688,1.0006663,216.95,214.64,1.6924531]
[1693531589689,0.07504997,216.87,214.64,1.6924531]
[1693531590591,0.07504997,216.86,214.64,1.6924531]
[1693531591287,0.07504997,216.86,214.65,0.16924531]
[1693531591488,0.07504997,216.86,214.66,0.16924531]
[1693531591689,0.07504997,216.85,214.62,1.6924531]
[1693531593496,0.07504997,216.84,214.62,1.6924531]
[1693531593892,0.07504997,216.85,214.62,1.6924531]
[1693531594294,0.07504997,216.84,214.62,1.6924531]
[1693531595697,0.07504997,216.83,214.62,1.6924531]
[1693531598598,0.07504997,216.82,214.62,1.6924531]
[1693531599402,0.07504997,216.83,214.62,1.6924531]
[1693531599599,0.07504997,216.82,214.62,1.6924531]
[1693531604507,0.07504997,216.81,214.62,1.6924531]
[1693531609404,0.07504997,216.82,214.62,1.6924531]
[1693531609603,0.07504997,216.81,214.62,1.6924531]
[1693531610405,0.07504997,216.82,214.62,1.6924531]
[1693531613612,0.07504997,216.82,214.63,1.86169841]
[1693531613812,0.07504997,216.83,214.63,1.6924531]
[1693531617414,0.07504997,216.82,214.63,1.6924531]
[1693531618611,0.07504997,216.8,214.63,1.6924531]
[1693531619412,0.07504997,216.81,214.63,1.6924531]
[1693531623918,0.07504997,216.82,214.63,1.6924531]
[1693531626622,0.07504997,216.83,214.63,1.6924531]
[1693531629625,0.07504997,216.84,214.63,1.6924531]
[1693531630918,0.07504997,216.85,214.63,1.6924531]
[1693531632625,0.07504997,216.86,214.63,1.6924531]
[1693531634520,0.07504997,216.87,214.63,1.6924531]
[1693531636126,0.07504997,216.86,214.63,1.6924531]
[1693531636322,0.07504997,216.87,214.63,1.6924531]
[1693531645529,0.07504997,216.86,214.63,1.6924531]
[1693531684464,0.07504997,216.87,214.63,1.6924531]
[1693531687763,0.07504997,216.87,214.64,1.6924531]
[1693531690264,0.07504997,216.88,214.64,1.6924531]
[1693531691759,0.07504997,216.87,214.64,1.6924531]
[1693531693262,0.07504997,216.88,214.64,1.6924531]
[1693531693463,0.07504997,216.93,214.64,1.6924531]
[1693531694364,0.07504997,216.95,214.64,1.6924531]
[1693531695862,0.07504997,216.96,214.64,1.6924531]
[1693531697165,0.07504997,216.97,214.64,1.6924531]
[1693531697361,0.07504997,216.97,214.69,1.6924531]
[1693531699367,0.07504997,216.98,214.69,1.6924531]
[1693531701970,0.07504997,216.97,214.7,0.16924531]
[1693531702170,0.07504997,216.97,214.71,0.16924531]
[1693531702371,0.07504997,216.97,214.68,1.6924531]
[1693531702767,0.07504997,216.98,214.68,1.6924531]
[1693531702973,0.07504997,216.99,214.68,1.6924531]
[1693531706176,0.07504997,216.99,214.69,1.6924531]
[1693531706773,0.07504997,216.98,214.69,1.6924531]
[1693531709176,0.07504997,216.97,214.69,1.6924531]
[1693531712274,0.07504997,216.96,214.69,1.6924531]
[1693531714880,0.07504997,216.95,214.69,1.6924531]
[1693531718382,0.07504997,216.94,214.69,1.6924531]
[1693531721285,0.07504997,216.93,214.69,1.6924531]
[1693531721488,0.07504997,216.94,214.69,1.6924531]
[1693531721689,0.07504997,216.96,214.69,1.6924531]
[1693531722184,0.07504997,216.95,214.69,1.6924531]
[1693531723486,0.07504997,216.95,214.72,1.6924531]
[1693531724288,0.07504997,216.94,214.72,1.6924531]
[1693531726289,0.07504997,216.93,214.72,1.6924531]
[1693531727286,0.07504997,216.92,214.72,1.6924531]
[1693531728285,0.07504997,216.91,214.72,1.6924531]
[1693531732994,0.07504997,216.91,214.71,1.6924531]
[1693531734793,0.07504997,216.92,214.71,1.6924531]
[1693531736693,0.07504997,216.91,214.71,1.6924531]
[1693531736893,0.07504997,216.92,214.71,1.6924531]
[1693531738099,0.07504997,216.92,214.72,0.16924531]
[1693531738299,0.07504997,216.92,214.7,1.6924531]
[1693531738901,0.07504997,216.93,214.7,1.6924531]
[1693531741900,0.07504997,216.94,214.7,1.6924531]
[1693531743102,0.07504997,216.94,214.71,1.6924531]
[1693531743306,0.07504997,216.95,214.71,1.6924531]
[1693531743708,0.07504997,216.94,214.71,1.6924531]
[1693531744308,0.07504997,216.95,214.71,1.6924531]
[1693531744510,0.07504997,216.94,214.71,1.6924531]
[1693531744705,0.07504997,216.95,214.71,1.6924531]
[1693531746309,0.07504997,216.96,214.71,1.6924531]
[1693531748211,0.07504997,216.96,214.72,0.16924531]
[1693531748411,0.07504997,216.96,214.73,0.16924531]
[1693531748713,0.07504997,216.96,214.74,0.16924531]
[1693531748908,0.07504997,216.96,214.75,0.16924531]
[1693531749106,0.07504997,216.96,214.76,0.16924531]
[1693531749308,0.07504997,216.95,214.77,0.16924531]
[1693531749513,0.07504997,216.96,214.78,0.16924531]
[1693531749711,0.07504997,216.96,214.79,0.16924531]
[1693531749912,0.07504997,216.96,214.8,0.16924531]
[1693531750114,0.07504997,216.96,214.81,0.16924531]
[1693531750312,0.07504997,216.95,214.82,0.16924531]
[1693531750507,0.07504997,216.95,214.83,0.16924531]
[1693531750711,0.07504997,216.95,214.84,0.16924531]
[1693531750911,0.07504997,216.95,214.85,0.16924531]
[1693531751113,0.07504997,216.95,214.86,0.16924531]
[1693531751313,0.07504997,216.95,214.87,0.16924531]
[1693531751613,0.07504997,216.95,214.88,0.16924531]
[1693531751914,0.07504997,216.95,214.89,0.16924531]
[1693531752107,0.07504997,216.95,214.9,0.16924531]
[1693531752311,0.07504997,216.95,214.91,0.16924531]
[1693531752511,0.07504997,216.95,214.92,0.16924531]
[1693531752713,0.07504997,216.95,214.93,0.16924531]
[1693531752910,0.07504997,216.95,214.7,1.6924531]
[1693531753109,0.07504997,216.95,214.23,0.16924531]
[1693531753110,0.07504997,216.95,214.71,1.86169841]
[1693531753310,0.07504997,216.95,214.71,1.6924531]
[1693531757616,0.07504997,216.95,214.7,1.6924531]
[1693531761316,0.07504997,216.94,214.7,1.6924531]
[1693531762212,0.07504997,216.94,214.71,1.86169841]
[1693531762417,0.07504997,216.94,214.72,0.16924531]
[1693531762715,0.07504997,216.94,214.73,0.16924531]
[1693531762920,0.07504997,216.94,214.74,0.16924531]
[1693531763115,0.07504997,216.95,214.75,0.16924531]
[1693531763318,0.07504997,216.95,214.76,0.16924531]
[1693531763619,0.07504997,216.94,214.77,0.16924531]
[1693531763821,0.07504997,216.95,214.78,0.16924531]
[1693531764119,0.07504997,216.95,214.79,0.16924531]
[1693531764317,0.07504997,216.94,214.8,0.16924531]
[1693531764517,0.07504997,216.94,214.71,1.6924531]
[1693531766421,0.07504997,216.94,214.72,0.16924531]
[1693531766620,0.07504997,216.94,214.73,0.16924531]
[1693531766822,0.07504997,216.94,214.7,1.6924531]
[1693531769919,0.07504997,216.93,214.7,1.6924531]
[1693531770822,0.07504997,216.94,214.7,1.6924531]
[1693531771217,0.07504997,216.93,214.7,1.6924531]
[1693531791734,0.07504997,216.92,214.7,1.6924531]
[1693531792433,0.07504997,216.92,214.71,0.16924531]
[1693531792634,0.07504997,216.92,214.69,1.6924531]
[1693531794331,0.07504997,216.93,214.69,1.6924531]
[1693531794636,0.07504997,216.92,214.69,1.6924531]
[1693531794836,0.07504997,216.89,214.69,1.6924531]
[1693531795241,0.07504997,216.9,214.69,1.6924531]
[1693531796239,0.07504997,216.91,214.69,1.6924531]
[1693531796440,0.07504997,216.91,214.7,0.16924531]
[1693531796641,0.07504997,216.91,214.65,1.6924531]
[1693531798235,0.07504997,216.92,214.65,1.6924531]
[1693531802242,0.07504997,216.93,214.65,1.6924531]
[1693531807741,0.07504997,216.94,214.65,1.6924531]
[1693531809541,0.07504997,216.94,214.66,0.16924531]
[1693531809744,0.07504997,216.94,214.67,0.16924531]
[1693531809945,0.07504997,216.94,214.64,1.6924531]
[1693531811747,0.07504997,216.93,214.64,1.6924531]
[1693531813746,0.07504997,216.93,214.65,1.86169841]
[1693531813943,0.07504997,216.93,214.66,0.16924531]
[1693531814148,0.07504997,216.93,214.67,0.16924531]
[1693531814349,0.07504997,216.93,214.65,1.6924531]
[1693531814650,0.07504997,216.92,214.65,1.6924531]
[1693531817349,0.07504997,216.91,214.65,1.6924531]
[1693531817553,0.07504997,216.92,214.65,1.6924531]
[1693531817852,0.07504997,216.91,214.66,0.16924531]
[1693531818053,0.07504997,216.91,214.64,1.6924531]
[1693531819855,0.07504997,216.9,214.64,1.6924531]
[1693531822354,0.07504997,216.89,214.64,1.6924531]
[1693531825257,0.07504997,216.88,214.64,1.6924531]
[1693531826258,0.07504997,216.87,214.64,1.6924531]
[1693531826457,0.07504997,216.88,214.64,1.6924531]
[1693531826659,0.07504997,216.87,214.64,1.6924531]
[1693531828353,0.07504997,216.86,214.64,1.6924531]
[1693531829363,0.07504997,216.85,214.64,1.6924531]
[1693531835267,0.07504997,216.86,214.64,1.6924531]
[1693531840269,0.07504997,216.87,214.64,1.6924531]
[1693531850474,0.07504997,216.86,214.64,1.6924531]
[1693531851779,0.07504997,216.86,214.65,0.16924531]
[1693531851981,0.07504997,216.86,214.66,0.16924531]
[1693531852178,0.07504997,216.86,214.63,1.6924531]
[1693531857286,0.07504997,216.87,214.63,1.6924531]
[1693531863286,0.07504997,216.86,214.63,1.6924531]
[1693531863687,0.07504997,216.87,214.63,1.6924531]
[1693531863989,0.07504997,216.87,214.64,0.16924531]
[1693531864184,0.07504997,216.86,214.65,0.16924531]
[1693531864389,0.07504997,216.86,214.62,1.6924531]
[1693531864684,0.07504997,216.87,214.62,1.6924531]
[1693531865584,0.07504997,216.86,214.62,1.6924531]
[1693531868487,0.07504997,216.86,214.63,0.16924531]
[1693531868686,0.07504997,216.86,214.64,0.16924531]
[1693531868891,0.07504997,216.86,214.65,0.16924531]
[1693531869085,0.07504997,216.86,214.61,1.6924531]
[1693531877291,0.07504997,216.8,214.61,1.6924531]
[1693531877490,0.07504997,216.79,214.61,1.6924531]
[1693531877693,0.07504997,216.8,214.61,1.6924531]
[1693531878296,0.07504997,216.8,214.62,0.16924531]
[1693531878493,0.07504997,216.8,214.52,1.6924531]
[1693531879595,0.07504997,216.78,214.52,1.6924531]
[1693531880496,0.07504997,216.77,214.52,1.6924531]
[1693531881795,0.07504997,216.75,214.52,1.6924531]
[1693531882498,0.07504997,216.74,214.52,1.6924531]
[1693531883093,0.07504997,216.74,214.5,1.6924531]
[1693531883695,0.07504997,216.73,214.5,1.6924531]
[1693531884496,0.07504997,216.72,214.5,1.6924531]
[1693531886498,0.07504997,216.71,214.5,1.6924531]
[1693531887602,0.07504997,216.7,214.5,1.6924531]
[1693531888695,0.07504997,216.69,214.5,1.6924531]
[1693531890604,0.07504997,216.68,214.5,1.6924531]
[1693531892702,0.07504997,216.67,214.5,1.6924531]
[1693531894804,0.07504997,216.66,214.5,1.6924531]
[1693531896708,0.07504997,216.65,214.5,1.6924531]
[1693531898706,0.07504997,216.64,214.5,1.6924531]
[1693531900814,0.07504997,216.63,214.5,1.6924531]
[1693531903511,0.07504997,216.62,214.5,1.6924531]
[1693531905516,0.07504997,216.61,214.5,1.6924531]
[1693531907518,0.07504997,216.6,214.5,1.6924531]
[1693531908518,0.07504997,216.59,214.5,1.6924531]
[1693531908915,0.07504997,216.59,214.51,0.16924531]
[1693531909118,0.07504997,216.59,214.52,0.16924531]
[1693531909316,0.07504997,216.6,214.53,0.16924531]
[1693531909512,0.07504997,216.6,214.54,0.16924531]
[1693531909714,0.07504997,216.59,214.55,0.16924531]
[1693531909914,0.07504997,216.59,214.56,0.16924531]
[1693531910118,0.07504997,216.59,214.57,0.16924531]
[1693531910318,0.07504997,216.59,214.58,0.16924531]
[1693531910519,0.07504997,216.57,214.59,0.16924531]
[1693531910820,0.07504997,216.57,214.6,0.16924531]
[1693531911020,0.07504997,216.57,214.61,0.16924531]
[1693531911213,0.07504997,216.57,214.49,1.6924531]
[1693531911620,0.07504997,216.54,214.49,1.6924531]
[1693531912819,0.07504997,216.55,214.49,1.6924531]
[1693531915624,0.07504997,216.56,214.49,1.6924531]
[1693531917625,0.07504997,216.57,214.49,1.6924531]
[1693531918821,0.07504997,216.58,214.49,1.6924531]
[1693531919826,0.07504997,216.59,214.49,1.6924531]
[1693531922029,0.07504997,216.6,214.49,1.6924531]
[1693531923629,0.07504997,216.61,214.49,1.6924531]
[1693531924627,0.07504997,216.62,214.49,1.6924531]
[1693531925529,0.07504997,216.63,214.49,1.6924531]
[1693531926429,0.07504997,216.64,214.49,1.6924531]
[1693531927430,0.07504997,216.65,214.49,1.6924531]
[1693531927630,0.07504997,216.66,214.49,1.6924531]
[1693531928232,0.07504997,216.66,214.5,1.86169841]
[1693531928434,0.07504997,216.66,214.51,0.16924531]
[1693531928635,0.07504997,216.67,214.52,0.16924531]
[1693531928932,0.07504997,216.67,214.53,0.16924531]
[1693531929129,0.07504997,216.67,214.5,1.6924531]
[1693531929535,0.07504997,216.69,214.5,1.6924531]
[1693531930729,0.07504997,216.71,214.5,1.6924531]
[1693531931131,0.07504997,216.7,214.5,1.6924531]
[1693531931635,0.07504997,216.72,214.5,1.6924531]
[1693531932036,0.07504997,216.72,214.51,1.6924531]
[1693531932637,0.07504997,216.74,214.51,1.6924531]
[1693531933535,0.07504997,216.75,214.51,1.6924531]
[1693531941541,0.07504997,216.74,214.51,1.6924531]
[1693531944339,0.07504997,216.75,214.51,1.6924531]
[1693531964357,0.07504997,216.75,214.52,1.86169841]
[1693531964558,0.07504997,216.75,214.53,0.16924531]
[1693531964760,0.07504997,216.75,214.54,0.16924531]
[1693531964959,0.07504997,216.75,214.55,0.16924531]
[1693531965159,0.07504997,216.75,214.56,0.16924531]
[1693531965355,0.07504997,216.75,214.57,0.16924531]
[1693531965559,0.07504997,216.75,214.58,0.16924531]
[1693531965861,0.07504997,216.81,214.59,0.16924531]
[1693531966161,0.07504997,216.81,214.6,0.16924531]
[1693531966360,0.07504997,216.83,214.61,0.16924531]
[1693531966554,0.07504997,216.83,214.62,0.16924531]
[1693531966757,0.07504997,216.83,214.63,0.16924531]
[1693531966958,0.07504997,216.83,214.64,0.16924531]
[1693531967157,0.07504997,216.83,214.65,0.16924531]
[1693531967360,0.07504997,216.83,214.66,0.16924531]
[1693531967556,0.07504997,216.85,214.67,0.16924531]
[1693531967759,0.07504997,216.85,214.68,0.16924531]
[1693531967956,0.07504997,216.85,214.69,0.16924531]
[1693531968156,0.07504997,216.85,214.7,0.16924531]
[1693531968361,0.07504997,216.85,214.71,0.16924531]
[1693531968561,0.07504997,216.85,214.58,1.6924531]
[1693531969459,0.07504997,216.86,214.58,1.6924531]
[1693531970360,0.07504997,216.87,214.58,1.6924531]
[1693531971561,0.07504997,216.88,214.58,1.6924531]
[1693531974464,0.07504997,216.87,214.58,1.6924531]
[1693531976472,0.07504997,216.86,214.58,1.6924531]
[1693531976867,0.07504997,216.85,214.58,1.6924531]
[1693531977971,0.07504997,216.85,214.59,0.16924531]
[1693531978168,0.07504997,216.85,214.6,0.16924531]
[1693531978373,0.07504997,216.85,214.61,0.16924531]
[1693531978574,0.07504997,216.85,214.62,0.16924531]
[1693531978774,0.07504997,216.85,214.63,0.16924531]
[1693531978974,0.07504997,216.85,214.64,0.16924531]
[1693531979174,0.07504997,216.85,214.65,0.16924531]
[1693531979373,0.07504997,216.85,214.66,0.16924531]
[1693531979574,0.07504997,216.85,214.67,0.16924531]
[1693531979770,0.07504997,216.85,214.68,0.16924531]
[1693531979976,0.07504997,216.85,214.69,0.16924531]
[1693531980172,0.07504997,216.85,214.7,0.16924531]
[1693531980475,0.07504997,216.85,214.71,0.16924531]
[1693531980668,0.07504997,216.85,214.72,0.16924531]
[1693531980873,0.07504997,216.85,214.73,0.16924531]
[1693531981070,0.07504997,216.85,214.74,0.16924531]
[1693531981273,0.07504997,216.85,214.75,0.16924531]
[1693531981469,0.07504997,216.85,214.76,0.16924531]
[1693531981673,0.07504997,216.85,214.77,0.16924531]
[1693531981874,0.07504997,216.85,214.78,0.16924531]
[1693531982076,0.07504997,216.84,214.79,0.16924531]
[1693531982277,0.07504997,216.84,214.8,0.16924531]
[1693531982575,0.07504997,216.84,214.81,0.16924531]
[1693531982877,0.07504997,216.84,214.82,0.16924531]
[1693531983078,0.07504997,216.84,214.83,0.16924531]
[1693531983376,0.07504997,216.84,214.84,0.16924531]
[1693531983572,0.07504997,216.84,214.57,1.6924531]
[1693531986478,0.07504997,216.83,214.57,1.6924531]
[1693531989681,0.07504997,216.82,214.57,1.6924531]
[1693531993484,0.07504997,216.81,214.57,1.6924531]
[1693531995582,0.07504997,216.8,214.57,1.6924531]
[1693531996487,0.07504997,216.79,214.57,1.6924531]
[1693531998489,0.07504997,216.78,214.57,1.6924531]
[1693531999288,0.07504997,216.77,214.57,1.6924531]
[1693532000388,0.07504997,216.75,214.57,1.6924531]
[1693532003790,0.07504997,216.76,214.57,1.6924531]
[1693532006791,0.07504997,216.77,214.57,1.6924531]
[1693532008089,0.07504997,216.77,214.58,1.86169841]
[1693532008290,0.07504997,216.77,214.59,0.16924531]
[1693532008491,0.07504997,216.77,214.6,0.16924531]
[1693532008796,0.07504997,216.77,214.61,0.16924531]
[1693532008996,0.07504997,216.77,214.62,0.16924531]
[1693532009198,0.07504997,216.77,214.63,0.16924531]
[1693532009397,0.07504997,216.77,214.58,1.6924531]
[1693532010496,0.07504997,216.78,214.58,1.6924531]
[1693532012592,0.07504997,216.79,214.58,1.6924531]
[1693532014302,0.07504997,216.8,214.58,1.6924531]
[1693532015399,0.07504997,216.81,214.58,1.6924531]
[1693532016695,0.07504997,216.81,214.59,1.86169841]
[1693532016899,0.07504997,216.81,214.6,0.16924531]
[1693532017096,0.07504997,216.81,214.61,0.16924531]
[1693532017299,0.07504997,216.81,214.62,0.16924531]
[1693532017499,0.07504997,216.81,214.63,0.16924531]
[1693532017701,0.07504997,216.81,214.64,0.16924531]
[1693532017999,0.07504997,216.81,214.65,0.16924531]
[1693532018203,0.07504997,216.81,214.66,0.16924531]
[1693532018400,0.07504997,216.81,214.67,0.16924531]
[1693532018597,0.07504997,216.81,214.68,0.16924531]
[1693532018798,0.07504997,216.81,214.69,0.16924531]
[1693532019102,0.07504997,216.81,214.7,0.16924531]
[1693532019305,0.07504997,216.81,214.71,0.16924531]
[1693532019599,0.07504997,216.81,214.72,0.16924531]
[1693532019803,0.07504997,216.81,214.73,0.16924531]
[1693532020003,0.07504997,216.81,214.74,0.16924531]
[1693532020304,0.07504997,216.81,214.75,0.16924531]
[1693532020504,0.07504997,216.81,214.76,0.16924531]
[1693532020702,0.07504997,216.81,214.58,1.6924531]
[1693532038419,0.07504997,216.82,214.58,1.6924531]
[1693532039221,0.07504997,216.82,214.59,1.6924531]
[1693532040924,0.07504997,216.83,214.59,1.6924531]
[1693532041922,0.07504997,216.84,214.59,1.6924531]
[1693532042929,0.07504997,216.84,214.6,1.86169841]
[1693532043128,0.07504997,216.84,214.61,0.16924531]
[1693532043329,0.07504997,216.84,214.6,1.6924531]
[1693532045629,0.15009994,216.87,214.6,1.6924531]
[1693532045630,0.07504997,216.85,214.6,1.6924531]
[1693532047833,0.07504997,216.84,214.6,1.6924531]
[1693532050433,0.07504997,216.84,214.61,0.16924531]
[1693532050631,0.07504997,216.84,214.62,0.16924531]
[1693532050833,0.07504997,216.84,214.63,0.16924531]
[1693532051026,0.07504997,216.84,214.64,0.16924531]
[1693532051231,0.07504997,216.84,214.65,0.16924531]
[1693532051433,0.07504997,216.84,214.66,0.16924531]
[1693532051627,0.07504997,216.84,214.67,0.16924531]
[1693532051831,0.07504997,216.84,214.68,0.16924531]